fUST/lending_fUST_20250302
["ID","MTS","AMOUNT","RATE_DAILY","PERIOD"]
[355028463,1740874252653,-1245.16,0.00025205,2]
[355028464,1740874252663,-1175.21,0.00025205,2]
[355028465,1740874252672,-1307.64,0.00025205,2]
[355028466,1740874252682,-200.523826,0.00025205,7]
[355028467,1740874252691,-729.32,0.00025205,2]
[355028468,1740874252702,-500.0,0.00025205,2]
[355028469,1740874252711,-11028.58,0.00025205,2]
[355028470,1740874252720,-249.0502652,0.00025205,2]
[355028471,1740874252729,-32365.13,0.00025205,2]
[355028472,1740874252739,-500.0,0.00025205,2]
[355028473,1740874252748,-884.84,0.00025205,2]
[355028474,1740874252758,-151.0,0.00025205,7]
[355028475,1740874252767,-151.0,0.00025205,7]
[355028476,1740874252777,-692.46,0.00025205,2]
[355028477,1740874252786,-151.0,0.00025205,7]
[355028478,1740874252795,-500.0,0.00025205,2]
[355028479,1740874252805,-1458.05,0.00025205,2]
[355028480,1740874252814,-151.0,0.00025205,7]
[355028481,1740874252824,-500.0,0.00025205,2]
[355028482,1740874252833,-357.36993631,0.00025205,2]
[355028483,1740874252843,-500.0,0.00025205,2]
[355028484,1740874252852,-151.0,0.00025205,7]
[355028485,1740874252862,-500.0,0.00025205,2]
[355028486,1740874252872,-2032.49,0.00025205,2]
[355028487,1740874252881,-320.22280286,0.00025205,2]
[355028488,1740874252891,-697.77,0.00025205,2]
[355028489,1740874252900,-6330.17,0.00025205,2]
[355028490,1740874252910,-14943.48,0.00025205,2]
[355028491,1740874252919,-1586.128498,0.00025205,7]
[355028492,1740874252929,-500.0,0.00025205,2]
[355028493,1740874252938,-1586.128498,0.00025205,7]
[355028494,1740874252947,-3134.42,0.00025205,2]
[355028495,1740874252958,-344.04654153,0.00025205,2]
[355028496,1740874252967,-500.0,0.00025205,2]
[355028497,1740874252977,-836.59,0.00025205,2]
[355028498,1740874252986,-500.0,0.00025205,2]
[355028499,1740874252996,-1644.6,0.00025205,2]
[355028500,1740874253005,-500.0,0.00025205,2]
[355028501,1740874253014,-500.0,0.00025205,2]
[355028502,1740874253023,-500.0,0.00025205,2]
[355028503,1740874253034,-500.0,0.00025205,2]
[355028504,1740874253043,-7012.52,0.00025205,2]
[355028505,1740874253052,-1027.54,0.00025205,5]
[355028506,1740874253061,-500.0,0.00025205,2]
[355028507,1740874253070,-3013.7,0.00025205,2]
[355028508,1740874253081,-849.97,0.00025205,2]
[355028509,1740874253090,-399.55513693,0.00025205,2]
[355028510,1740874253907,-1015.58486307,0.00025205,2]
[355028511,1740874253916,-500.0,0.00025205,2]
[355028512,1740874253926,-4732.12,0.00025205,2]
[355028513,1740874253936,-500.0,0.00025205,2]
[355028514,1740874253946,-500.0,0.00025205,2]
[355028515,1740874253957,-1311.14,0.00025205,2]
[355028516,1740874253967,-542.51,0.00025205,2]
[355028517,1740874253977,-500.0,0.00025205,2]
[355028518,1740874253986,-500.0,0.00025205,2]
[355028519,1740874253996,-5218.04,0.00025205,2]
[355028520,1740874254007,-557.81,0.00025205,2]
[355028521,1740874254016,-842.34,0.00025205,2]
[355028522,1740874254026,-13040.1,0.00025205,2]
[355028523,1740874254036,-1864.63,0.00025205,2]
[355028524,1740874254046,-500.0,0.00025205,2]
[355028525,1740874254056,-1028.6,0.00025205,2]
[355028526,1740874254067,-528.49547566,0.00025205,2]
[355028527,1740874254078,-500.0,0.00025205,2]
[355028528,1740874254087,-500.0,0.00025205,2]
[355028529,1740874254098,-500.0,0.00025205,2]
[355028530,1740874254108,-500.0,0.00025205,2]
[355028531,1740874254117,-978.78,0.00025205,2]
[355028532,1740874254128,-1423.76,0.00025205,2]
[355028533,1740874254138,-1258.87,0.00025205,2]
[355028534,1740874254148,-669.97,0.00025205,2]
[355028535,1740874254157,-976.81,0.00025205,2]
[355028536,1740874254167,-500.0,0.00025205,2]
[355028537,1740874254177,-1194.5,0.00025205,2]
[355028538,1740874254187,-225.14153625,0.00025205,2]
[355028539,1740874254198,-580.16,0.00025205,2]
[355028540,1740874254207,-500.0,0.00025205,2]
[355028541,1740874254217,-869.21,0.00025205,2]
[355028542,1740874254229,-500.0,0.00025205,2]
[355028543,1740874254238,-500.0,0.00025205,2]
[355028544,1740874254248,-2879.74,0.00025205,2]
[355028545,1740874254259,-500.0,0.00025205,2]
[355028546,1740874254269,-1920.39,0.00025205,2]
[355028547,1740874254279,-500.0,0.00025205,2]
[355028548,1740874254289,-896.88734741,0.00025205,2]
[355028549,1740874254821,-500.0,0.00024657,2]
[355028550,1740874254831,-611.0,0.00024657,2]
[355028551,1740874254841,-500.0,0.00024657,2]
[355028552,1740874254851,-500.0,0.00024931,2]
[355028553,1740874254861,-500.0,0.00024931,2]
[355028554,1740874254870,-60.530926,0.00025205,2]
[355028555,1740874257704,-500.0,0.00024657,2]
[355028556,1740874257714,-500.0,0.00024657,2]
[355028557,1740874257724,-500.0,0.00024657,2]
[355028558,1740874257733,-500.0,0.00024657,2]
[355028559,1740874257743,-500.0,0.00024931,2]
[355028560,1740874257752,-500.0,0.00024931,2]
[355028561,1740874257762,-920.73172659,0.00025205,2]
[355028562,1740874257771,-500.0,0.00025205,2]
[355028563,1740874257781,-894.97,0.00025205,2]
[355028564,1740874257790,-500.0,0.00025205,2]
[355028565,1740874257799,-1175.2,0.00025205,2]
[355028566,1740874257809,-523.76,0.00025205,2]
[355028567,1740874257818,-500.0,0.00025205,2]
[355028568,1740874257828,-772.08,0.00025205,2]
[355028569,1740874257837,-16008.12,0.00025205,2]
[355028570,1740874257847,-749.78,0.00025205,2]
[355028571,1740874257858,-568.12,0.00025205,2]
[355028572,1740874257867,-151.0,0.00025205,7]
[355028573,1740874257877,-856.25745986,0.00025205,2]
[355028587,1740874577954,151.0,0.00025,14]
[355028599,1740874946038,1541.53,0.00025,14]
[355028600,1740874985950,151.0,0.00025,14]
[355028601,1740874993525,942.43,0.00025,14]
[355028602,1740875021736,500.0,0.00025,14]
[355028604,1740875041907,1500.0,0.00025,14]
[355028605,1740875063347,1500.0,0.00025,14]
[355028606,1740875085605,1500.0,0.00025,14]
[355028607,1740875110606,1500.0,0.00025,14]
[355028608,1740875123741,1500.0,0.00025,14]
[355028610,1740875175507,500.0,0.00025,14]
[355028611,1740875200503,500.0,0.00025,14]
[355028614,1740875241122,-231.64359839,0.00022,2]
[355028625,1740875352095,-248.27244469,0.00022,2]
[355028626,1740875352118,-151.0,0.00022,2]
[355028627,1740875352139,-120.37203324,0.00022394,5]
[355028628,1740875359169,-54.96782197,0.00022394,5]
[355028629,1740875359194,-356.30067823,0.00022581,2]
[355028630,1740875378783,-18.94435277,0.00022581,2]
[355028631,1740875385779,-759.51037086,0.00023105,2]
[355028632,1740875396536,506.34024724,0.000229,2]
[355028667,1740875432667,-7855.92110749,0.00023441,2]
[355028668,1740875432676,-300.0,0.00023441,2]
[355028669,1740875432686,-15519.7080878,0.00023442,2]
[355028720,1740875438568,-3312.83166818,0.00023442,2]
[355028721,1740875438623,-6067.46024402,0.00023442,2]
[355028722,1740875438633,-855.54197519,0.000239,2]
[355028723,1740875438643,-150.0,0.00024,2]
[355028724,1740875438652,-500.0,0.00024456,2]
[355028725,1740875438662,-500.0,0.00024456,2]
[355028726,1740875438672,-500.0,0.00024456,2]
[355028727,1740875438681,-500.0,0.00024456,2]
[355028728,1740875438693,-500.0,0.00024456,2]
[355028729,1740875438703,-500.0,0.00024456,2]
[355028730,1740875438712,-187.29944575,0.00024456,2]
[355028731,1740875438722,-500.0,0.00024456,2]
[355028732,1740875438732,-222000.0,0.00024457,2]
[355028734,1740875438741,-855.54197518,0.00024464,2]
[355028736,1740875438751,-430.3,0.000245,7]
[355028737,1740875438760,-355.8486436,0.000245,2]
[355028738,1740875438770,-3000.0,0.00024557,2]
[355028739,1740875438780,-360.74617796,0.00024557,2]
[355028740,1740875438789,-360.74617792,0.00024626,2]
[355028741,1740875438799,-208.84989201,0.00024657,2]
[355028742,1740875438808,-209.62608574,0.00024657,2]
[355028743,1740875438818,-309.19359549,0.00024657,2]
[355028744,1740875438827,-500.0,0.00024657,2]
[355028745,1740875438837,-500.0,0.00024657,2]
[355028746,1740875438847,-500.0,0.00024657,2]
[355028747,1740875438856,-500.0,0.00024657,2]
[355028748,1740875438866,-500.0,0.00024657,2]
[355028749,1740875438875,-500.0,0.00024657,2]
[355028750,1740875438885,-500.0,0.00024657,2]
[355028751,1740875438895,-749.39,0.00024657,2]
[355028752,1740875438904,-500.0,0.00024657,2]
[355028753,1740875438913,-500.0,0.00024657,2]
[355028754,1740875438923,-500.0,0.00024657,2]
[355028755,1740875438932,-576.84,0.00024657,2]
[355028756,1740875438943,-500.0,0.00024657,2]
[355028757,1740875438953,-500.0,0.00024657,2]
[355028758,1740875438962,-500.0,0.00024657,2]
[355028759,1740875438972,-500.0,0.00024657,2]
[355028760,1740875438981,-500.0,0.00024657,2]
[355028761,1740875438991,-500.0,0.00024657,2]
[355028762,1740875439000,-500.0,0.00024657,2]
[355028763,1740875439009,-505.40251695,0.00024657,2]
[355028764,1740875439019,-648.89,0.00024657,2]
[355028765,1740875439029,-500.0,0.00024657,2]
[355028766,1740875439039,-500.0,0.00024657,2]
[355028767,1740875439048,-1055.31,0.00024657,2]
[355028768,1740875439058,-500.0,0.00024657,2]
[355028769,1740875439067,-500.0,0.00024657,2]
[355028770,1740875439076,-500.0,0.00024657,2]
[355028771,1740875439086,-500.0,0.00024657,2]
[355028772,1740875439095,-500.0,0.00024657,2]
[355028773,1740875439106,-520.03020786,0.00024657,2]
[355028774,1740875439116,-500.0,0.00024657,2]
[355028775,1740875439125,-500.0,0.00024657,2]
[355028776,1740875439134,-500.0,0.00024657,2]
[355028777,1740875439144,-560.47,0.00024657,2]
[355028778,1740875439154,-500.0,0.00024657,2]
[355028779,1740875439163,-500.0,0.00024657,2]
[355028780,1740875439173,-500.0,0.00024657,2]
[355028781,1740875439182,-866.85,0.00024657,2]
[355028782,1740875439193,-753.98,0.00024657,2]
[355028783,1740875439202,-500.0,0.00024657,2]
[355028784,1740875439212,-500.0,0.00024657,2]
[355028785,1740875439221,-505.41650911,0.00024657,2]
[355028786,1740875439231,-500.0,0.00024657,2]
[355028787,1740875439240,-500.0,0.00024657,2]
[355028788,1740875439250,-500.0,0.00024657,2]
[355028789,1740875439259,-500.0,0.00024657,2]
[355028790,1740875439269,-500.0,0.00024657,2]
[355028791,1740875439279,-520.5,0.00024657,2]
[355028792,1740875439289,-500.0,0.00024657,2]
[355028793,1740875439299,-500.0,0.00024657,2]
[355028794,1740875439309,-508.22444522,0.00024657,2]
[355028795,1740875439318,-500.0,0.00024657,2]
[355028796,1740875439328,-500.0,0.00024657,2]
[355028797,1740875439337,-636.81,0.00024657,2]
[355028798,1740875439347,-502.60845114,0.00024657,2]
[355028799,1740875439356,-500.0,0.00024657,2]
[355028800,1740875439366,-500.0,0.00024657,2]
[355028801,1740875439376,-500.0,0.00024657,2]
[355028802,1740875439385,-500.0,0.00024657,2]
[355028803,1740875439396,-500.0,0.00024657,2]
[355028804,1740875439406,-500.0,0.00024657,2]
[355028805,1740875439416,-978.93,0.00024657,2]
[355028806,1740875439428,-500.0,0.00024657,2]
[355028807,1740875439439,-500.0,0.00024657,2]
[355028808,1740875439448,-500.0,0.00024657,2]
[355028809,1740875439457,-525.66281093,0.00024657,2]
[355028810,1740875439467,-500.0,0.00024657,2]
[355028811,1740875439477,-500.0,0.00024657,2]
[355028812,1740875439487,-500.0,0.00024657,2]
[355028813,1740875439497,-500.0,0.00024657,2]
[355028814,1740875439506,-500.0,0.00024657,2]
[355028815,1740875439516,-500.0,0.00024657,2]
[355028816,1740875439525,-500.0,0.00024657,2]
[355028817,1740875439535,-500.0,0.00024657,2]
[355028818,1740875439544,-318.47186601,0.00024657,2]
[355028819,1740875439553,-500.0,0.00024657,2]
[355028820,1740875439563,-500.0,0.00024657,2]
[355028821,1740875439573,-500.0,0.00024657,2]
[355028822,1740875439584,-500.0,0.00024657,2]
[355028823,1740875439595,-500.0,0.00024657,2]
[355028824,1740875439604,-200.0,0.00024657,2]
[355028825,1740875439614,-500.0,0.00024657,2]
[355028826,1740875439625,-500.0,0.00024657,2]
[355028827,1740875439635,-500.0,0.00024657,2]
[355028828,1740875439645,-504.88748835,0.00024657,2]
[355028829,1740875439654,-500.0,0.00024657,2]
[355028830,1740875439666,-500.0,0.00024657,2]
[355028831,1740875439676,-956.1,0.00024657,2]
[355028832,1740875439686,-500.0,0.00024657,2]
[355028833,1740875439697,-500.0,0.00024657,2]
[355028834,1740875439707,-770.72,0.00024657,2]
[355028835,1740875439717,-500.0,0.00024657,2]
[355028836,1740875439727,-500.0,0.00024657,2]
[355028837,1740875439737,-500.0,0.00024657,2]
[355028838,1740875439746,-500.0,0.00024657,2]
[355028839,1740875439756,-500.0,0.00024657,2]
[355028840,1740875439766,-500.0,0.00024657,2]
[355028841,1740875439775,-500.0,0.00024657,2]
[355028842,1740875439785,-500.0,0.00024657,2]
[355028843,1740875439794,-500.0,0.00024657,2]
[355028844,1740875439804,-500.0,0.00024657,2]
[355028845,1740875439814,-1084.38,0.00024657,2]
[355028846,1740875439823,-500.0,0.00024657,2]
[355028847,1740875439833,-500.0,0.00024657,2]
[355028848,1740875439842,-500.0,0.00024657,2]
[355028849,1740875439851,-500.0,0.00024657,2]
[355028850,1740875439862,-500.0,0.00024657,2]
[355028851,1740875439871,-500.0,0.00024657,2]
[355028852,1740875439881,-500.0,0.00024657,2]
[355028853,1740875439890,-500.0,0.00024657,2]
[355028854,1740875439900,-500.0,0.00024657,2]
[355028855,1740875439909,-500.0,0.00024657,2]
[355028856,1740875439919,-500.0,0.00024657,2]
[355028857,1740875439928,-500.0,0.00024657,2]
[355028858,1740875439940,-500.0,0.00024657,2]
[355028859,1740875439949,-500.0,0.00024657,2]
[355028860,1740875439958,-566.86,0.00024657,2]
[355028861,1740875439968,-501.9341304,0.00024657,2]
[355028862,1740875439977,-500.0,0.00024657,2]
[355028863,1740875439987,-573.77727748,0.00024657,2]
[355028864,1740875439997,-673.05,0.00024657,2]
[355028865,1740875440006,-509.14059452,0.00024657,2]
[355028866,1740875440016,-500.0,0.00024657,2]
[355028867,1740875440025,-522.23,0.00024657,2]
[355028868,1740875440035,-500.0,0.00024657,2]
[355028869,1740875440044,-500.0,0.00024657,2]
[355028870,1740875440054,-500.0,0.00024657,2]
[355028871,1740875440063,-500.0,0.00024657,2]
[355028872,1740875440073,-500.0,0.00024657,2]
[355028873,1740875440083,-250.32898851,0.00024657,2]
[355028874,1740875440092,-1033.67,0.00024657,2]
[355028875,1740875440102,-500.0,0.00024657,2]
[355028876,1740875440111,-500.0,0.00024657,2]
[355028877,1740875440121,-500.0,0.00024657,2]
[355028878,1740875440131,-500.0,0.00024657,2]
[355028879,1740875440140,-500.0,0.00024657,2]
[355028880,1740875440149,-500.0,0.00024657,2]
[355028881,1740875440159,-620.36,0.00024657,2]
[355028882,1740875440169,-500.0,0.00024657,2]
[355028883,1740875440178,-500.0,0.00024657,2]
[355028884,1740875440188,-500.0,0.00024657,2]
[355028885,1740875440199,-500.0,0.00024657,2]
[355028886,1740875440209,-398.00399413,0.00024657,2]
[355028887,1740875440219,-500.0,0.00024657,2]
[355028888,1740875440228,-500.0,0.00024657,2]
[355028889,1740875440238,-500.0,0.00024657,2]
[355028890,1740875440247,-500.0,0.00024657,2]
[355028891,1740875440257,-500.0,0.00024657,2]
[355028892,1740875440266,-454.30551841,0.00024657,2]
[355028893,1740875440276,-502.95608307,0.00024657,2]
[355028894,1740875440285,-500.0,0.00024657,2]
[355028895,1740875440295,-500.0,0.00024657,2]
[355028896,1740875440304,-844.32,0.00024657,2]
[355028897,1740875440313,-500.0,0.00024657,2]
[355028898,1740875440322,-500.0,0.00024657,2]
[355028899,1740875440331,-500.0,0.00024657,2]
[355028900,1740875440341,-500.0,0.00024657,2]
[355028902,1740875440351,-500.0,0.00024657,2]
[355028904,1740875440360,-500.0,0.00024657,2]
[355028906,1740875440370,-637.77,0.00024657,2]
[355028908,1740875440380,-500.0,0.00024657,2]
[355028910,1740875440389,-500.0,0.00024657,2]
[355028911,1740875440399,-1457.98,0.00024657,2]
[355028913,1740875440409,-500.0,0.00024657,2]
[355028915,1740875440419,-500.0,0.00024657,2]
[355028917,1740875440428,-500.0,0.00024657,2]
[355028919,1740875440440,-500.0,0.00024657,2]
[355028921,1740875440451,-500.0,0.00024657,2]
[355028923,1740875440460,-500.0,0.00024657,2]
[355028925,1740875440470,-514.97808468,0.00024657,2]
[355028927,1740875440479,-500.0,0.00024657,2]
[355028929,1740875440488,-500.0,0.00024657,2]
[355028931,1740875440497,-500.0,0.00024657,2]
[355028933,1740875440509,-500.0,0.00024657,2]
[355028935,1740875440518,-500.0,0.00024657,2]
[355028937,1740875440528,-225.91226886,0.00024657,2]
[355028939,1740875440537,-500.0,0.00024657,2]
[355028941,1740875440547,-500.0,0.00024657,2]
[355028942,1740875440556,-500.0,0.00024657,2]
[355028944,1740875440565,-752.43,0.00024657,2]
[355028946,1740875440576,-500.0,0.00024657,2]
[355028947,1740875440587,-500.0,0.00024657,2]
[355028948,1740875440597,-500.0,0.00024657,2]
[355028949,1740875440606,-500.0,0.00024657,2]
[355028950,1740875440616,-500.0,0.00024657,2]
[355028951,1740875440626,-500.0,0.00024657,2]
[355028952,1740875440636,-500.0,0.00024657,2]
[355028953,1740875440645,-618.89,0.00024657,2]
[355028954,1740875440654,-500.0,0.00024657,2]
[355028955,1740875440665,-500.0,0.00024657,2]
[355028956,1740875440674,-500.0,0.00024657,2]
[355028957,1740875440683,-880.95,0.00024657,2]
[355028958,1740875440694,-500.0,0.00024657,2]
[355028959,1740875440703,-500.0,0.00024657,2]
[355028960,1740875440712,-500.0,0.00024657,2]
[355028961,1740875440721,-500.0,0.00024657,2]
[355028962,1740875440731,-500.0,0.00024657,2]
[355028963,1740875440741,-500.0,0.00024657,2]
[355028964,1740875440750,-500.0,0.00024657,2]
[355028965,1740875440759,-500.0,0.00024657,2]
[355028966,1740875440769,-1335.97,0.00024657,2]
[355028967,1740875440780,-500.0,0.00024657,2]
[355028968,1740875440789,-500.0,0.00024657,2]
[355028969,1740875440798,-551.54,0.00024657,2]
[355028970,1740875440808,-500.0,0.00024657,2]
[355028971,1740875440818,-564.54,0.00024657,2]
[355028972,1740875440828,-500.0,0.00024657,2]
[355028973,1740875440837,-500.0,0.00024657,2]
[355028974,1740875440846,-500.0,0.00024657,2]
[355028975,1740875440856,-234.83147696,0.00024657,2]
[355028976,1740875440865,-755.04,0.00024657,2]
[355028977,1740875440875,-500.0,0.00024657,2]
[355028978,1740875440884,-500.0,0.00024657,2]
[355028979,1740875440894,-500.0,0.00024657,2]
[355028980,1740875440903,-500.0,0.00024657,2]
[355028981,1740875440913,-500.0,0.00024657,2]
[355028982,1740875440922,-500.0,0.00024657,2]
[355028983,1740875440931,-500.0,0.00024657,2]
[355028984,1740875440942,-500.0,0.00024657,2]
[355028985,1740875440951,-1921.73,0.00024657,2]
[355028986,1740875440961,-533.99,0.00024657,2]
[355028987,1740875440971,-500.0,0.00024657,2]
[355028988,1740875440980,-500.0,0.00024657,2]
[355028989,1740875440989,-500.0,0.00024657,2]
[355028990,1740875440998,-500.0,0.00024657,2]
[355028991,1740875441008,-500.0,0.00024657,2]
[355028992,1740875441018,-500.0,0.00024657,2]
[355028993,1740875441027,-500.0,0.00024657,2]
[355028994,1740875441036,-500.0,0.00024657,2]
[355028995,1740875441046,-500.0,0.00024657,2]
[355028996,1740875441056,-504.05068478,0.00024657,2]
[355028997,1740875441065,-500.0,0.00024657,2]
[355028998,1740875441075,-500.0,0.00024657,2]
[355028999,1740875441085,-500.0,0.00024657,2]
[355029000,1740875441095,-500.0,0.00024657,2]
[355029001,1740875441388,-1236.05,0.00024657,2]
[355029002,1740875441399,-500.0,0.00024657,2]
[355029003,1740875441408,-500.0,0.00024657,2]
[355029004,1740875441418,-500.0,0.00024657,2]
[355029005,1740875441427,-500.0,0.00024657,2]
[355029006,1740875441437,-500.0,0.00024657,2]
[355029007,1740875441452,-500.0,0.00024657,2]
[355029008,1740875441462,-359.70484199,0.00024657,2]
[355029009,1740875441471,-500.0,0.00024657,2]
[355029010,1740875441480,-500.0,0.00024657,2]
[355029011,1740875441490,-500.0,0.00024657,2]
[355029012,1740875441499,-500.0,0.00024657,2]
[355029013,1740875441508,-500.0,0.00024657,2]
[355029014,1740875441517,-500.0,0.00024657,2]
[355029015,1740875441527,-500.0,0.00024657,2]
[355029016,1740875441536,-500.0,0.00024657,2]
[355029017,1740875441545,-500.0,0.00024657,2]
[355029018,1740875441556,-611.05,0.00024657,2]
[355029019,1740875441565,-500.0,0.00024657,2]
[355029020,1740875441575,-1750.01,0.00024657,2]
[355029021,1740875441586,-500.0,0.00024657,2]
[355029022,1740875441597,-500.0,0.00024657,2]
[355029023,1740875441608,-746.66,0.00024657,2]
[355029024,1740875441617,-500.0,0.00024657,2]
[355029025,1740875441627,-500.0,0.00024657,2]
[355029026,1740875441637,-1142.6,0.00024657,2]
[355029027,1740875441647,-500.0,0.00024657,2]
[355029028,1740875441657,-1159.37,0.00024657,2]
[355029029,1740875441668,-500.0,0.00024657,2]
[355029030,1740875441678,-500.0,0.00024657,2]
[355029031,1740875441687,-500.0,0.00024657,2]
[355029032,1740875441698,-500.0,0.00024657,2]
[355029033,1740875441707,-500.0,0.00024657,2]
[355029034,1740875441717,-500.0,0.00024657,2]
[355029035,1740875441726,-567.62,0.00024657,2]
[355029036,1740875441735,-500.0,0.00024657,2]
[355029037,1740875441746,-766.19,0.00024657,2]
[355029038,1740875441756,-500.0,0.00024657,2]
[355029039,1740875441765,-1841.51,0.00024657,2]
[355029040,1740875441777,-500.0,0.00024657,2]
[355029041,1740875441787,-644.63,0.00024657,2]
[355029042,1740875441797,-500.0,0.00024657,2]
[355029043,1740875441807,-533.47922802,0.00024657,2]
[355029044,1740875441816,-500.0,0.00024657,2]
[355029045,1740875441826,-501.57,0.00024657,2]
[355029046,1740875441836,-500.0,0.00024657,2]
[355029047,1740875441845,-500.0,0.00024657,2]
[355029048,1740875441855,-500.0,0.00024657,2]
[355029049,1740875441865,-500.0,0.00024657,2]
[355029050,1740875441875,-500.0,0.00024657,2]
[355029051,1740875441887,-500.0,0.00024657,2]
[355029052,1740875441896,-500.0,0.00024657,2]
[355029053,1740875441906,-500.0,0.00024657,2]
[355029054,1740875441916,-500.0,0.00024657,2]
[355029055,1740875441925,-500.0,0.00024657,2]
[355029056,1740875441936,-500.0,0.00024657,2]
[355029057,1740875441947,-500.0,0.00024657,2]
[355029058,1740875441957,-500.0,0.00024657,2]
[355029059,1740875441967,-500.0,0.00024657,2]
[355029060,1740875441976,-500.0,0.00024657,2]
[355029061,1740875441986,-500.0,0.00024657,2]
[355029062,1740875441996,-500.0,0.00024657,2]
[355029063,1740875442006,-500.0,0.00024657,2]
[355029064,1740875442015,-500.0,0.00024657,2]
[355029065,1740875442025,-340.55587189,0.00024657,2]
[355029066,1740875442035,-500.0,0.00024657,2]
[355029067,1740875442045,-500.0,0.00024657,2]
[355029068,1740875442055,-500.0,0.00024657,2]
[355029069,1740875442064,-500.0,0.00024657,2]
[355029070,1740875442073,-500.0,0.00024657,2]
[355029071,1740875442083,-500.0,0.00024657,2]
[355029072,1740875442092,-500.0,0.00024657,2]
[355029073,1740875442102,-500.0,0.00024657,2]
[355029074,1740875442112,-500.0,0.00024657,2]
[355029075,1740875442122,-301.14,0.00024657,2]
[355029076,1740875442132,-500.0,0.00024657,2]
[355029077,1740875442141,-500.0,0.00024657,2]
[355029078,1740875442151,-1162.09,0.00024657,2]
[355029079,1740875442161,-500.0,0.00024657,2]
[355029080,1740875442171,-500.0,0.00024657,2]
[355029081,1740875442180,-504.10048671,0.00024657,2]
[355029082,1740875442189,-500.0,0.00024657,2]
[355029083,1740875442199,-500.0,0.00024657,2]
[355029084,1740875442209,-500.0,0.00024657,2]
[355029085,1740875442219,-724.55,0.00024657,2]
[355029086,1740875442229,-500.0,0.00024657,2]
[355029087,1740875442238,-500.0,0.00024657,2]
[355029088,1740875442248,-350.43520324,0.00024657,2]
[355029089,1740875442258,-500.0,0.00024657,2]
[355029090,1740875442267,-500.0,0.00024657,2]
[355029091,1740875442277,-500.0,0.00024657,2]
[355029092,1740875442286,-500.0,0.00024657,2]
[355029093,1740875442295,-500.0,0.00024657,2]
[355029094,1740875442305,-500.0,0.00024657,2]
[355029095,1740875442315,-500.0,0.00024657,2]
[355029096,1740875442324,-548.64,0.00024657,2]
[355029097,1740875442334,-2423.81,0.00024657,2]
[355029098,1740875442349,-500.0,0.00024657,2]
[355029099,1740875442360,-725.47,0.00024657,2]
[355029100,1740875442369,-500.0,0.00024657,2]
[355029101,1740875442379,-500.0,0.00024657,2]
[355029102,1740875442388,-500.0,0.00024657,2]
[355029103,1740875442397,-500.0,0.00024657,2]
[355029104,1740875442407,-1312.56,0.00024657,2]
[355029105,1740875442416,-1283.91,0.00024657,2]
[355029106,1740875442426,-500.0,0.00024657,2]
[355029107,1740875442435,-500.0,0.00024657,2]
[355029108,1740875442445,-353.42112393,0.00024657,2]